bitfinex/quotes_SOLUSD_20250604
["timestamp","ask_amount","ask_price","bid_price","bid_amount"]
[1749018546848,14.42445454,156.22,156.19,146.0]
[1749018547283,14.42445454,156.23,156.19,146.0]
[1749018555551,14.42445454,156.23,156.2,10.0]
[1749018555744,14.42445454,156.23,156.21,38.88]
[1749018557954,14.42445454,156.23,156.21,184.88]
[1749018560760,14.42445454,156.24,156.21,184.88]
[1749018561271,14.42445454,156.25,156.21,184.88]
[1749018563971,14.42445454,156.26,156.22,18.64964886]
[1749018564283,21.06814251,156.31,156.22,33.0741034]
[1749018564284,14.42445454,156.27,156.22,33.0741034]
[1749018564486,14.42445454,156.27,156.22,179.0741034]
[1749018565278,26.0,156.28,156.22,179.0741034]
[1749018565580,14.42445454,156.27,156.22,179.0741034]
[1749018569160,14.42445454,156.26,156.22,179.0741034]
[1749018569757,14.42445454,156.24,156.22,164.64964886]
[1749018571381,14.42445454,156.25,156.22,164.64964886]
[1749018574773,14.42445454,156.25,156.23,10.0]
[1749018575184,9.21980514,156.25,156.23,10.0]
[1749018575875,9.21980514,156.25,156.23,156.0]
[1749018576773,9.21980514,156.25,156.24,38.88]
[1749018583975,9.21980514,156.26,156.24,38.88]
[1749018584292,9.21980514,156.27,156.24,38.88]
[1749018585504,16.48224715,156.31,156.24,184.88]
[1749018585673,1.5469,156.31,156.25,27.869454]
[1749018585875,10.76670514,156.31,156.27,18.64964886]
[1749018586096,10.76670514,156.31,156.28,48.86]
[1749018586471,9.21980514,156.31,156.28,48.86]
[1749018587282,14.39632306,156.3,156.28,48.86]
[1749018587868,7.5452,156.35,156.28,48.86]
[1749018588104,14.39632306,156.31,156.28,48.86]
[1749018589394,14.39632306,156.3,156.28,48.86]
[1749018591594,14.39632306,156.31,156.28,48.86]
[1749018592796,27.5131,156.35,156.28,63.25632306]
[1749018593103,14.39632306,156.33,156.29,18.64964886]
[1749018593395,14.39632306,156.32,156.29,18.64964886]
[1749018594324,27.5131,156.35,156.29,18.64964886]
[1749018594608,14.39632306,156.33,156.29,18.64964886]
[1749018595322,14.39632306,156.34,156.29,33.04597192]
[1749018595494,14.39632306,156.34,156.3,14.39632306]
[1749018595675,14.39632306,156.35,156.31,18.64964886]
[1749018596006,14.39632306,156.35,156.32,38.86]
[1749018596180,14.39632306,156.35,156.33,9.98]
[1749018598914,14.39632306,156.34,156.33,9.98]
[1749018601010,14.39632306,156.34,156.33,48.84]
[1749018601216,16.03842306,156.34,156.33,9.98]
[1749018601386,16.03842306,156.34,156.33,38.86]
[1749018601796,16.03842306,156.34,156.29,155.98]
[1749018601991,14.39632306,156.3,156.29,9.98]
[1749018602500,14.39632306,156.3,156.29,48.84]
[1749018603209,14.39632306,156.3,156.29,9.98]
[1749018603508,14.39632306,156.3,156.29,48.84]
[1749018613417,14.39632306,156.3,156.29,9.98]
[1749018613629,14.39632306,156.3,156.29,48.84]
[1749018620939,14.39632306,156.31,156.29,48.84]
[1749018623127,14.39632306,156.3,156.29,48.84]
[1749018626320,26.0,156.36,156.29,48.84]
[1749018626321,14.39632306,156.31,156.29,48.84]
[1749018628225,26.0,156.36,156.29,48.84]
[1749018628443,14.39632306,156.31,156.29,194.84]
[1749018629235,14.39632306,156.3,156.29,194.84]
[1749018630125,14.39632306,156.31,156.29,194.84]
[1749018633724,14.39632306,156.3,156.29,194.84]
[1749018635437,14.39632306,156.31,156.29,194.84]
[1749018638661,14.39632306,156.3,156.29,155.98]
[1749018638858,14.39632306,156.3,156.29,9.98]
[1749018639155,14.39632306,156.3,156.29,48.82]
[1749018640055,14.39632306,156.3,156.29,9.98]
[1749018640356,14.39632306,156.3,156.29,48.82]
[1749018642335,14.39632306,156.3,156.29,38.84]
[1749018642643,40.39632306,156.3,156.29,38.84]
[1749018644630,40.39632306,156.3,156.25,9.98]
[1749018644837,14.39632306,156.26,156.25,9.98]
[1749018645138,14.39632306,156.26,156.25,48.82]
[1749018645944,28.79264612,156.26,156.22,55.22]
[1749018646173,27.5419,156.27,156.21,9.98]
[1749018646174,14.39632306,156.23,156.21,9.98]
[1749018646338,14.39632306,156.22,156.21,9.98]
[1749018646546,14.39632306,156.22,156.21,48.84]
[1749018648644,1.5419,156.27,156.21,48.84]
[1749018648859,14.39632306,156.24,156.21,48.84]
[1749018652692,14.39632306,156.24,156.21,194.84]
[1749018654685,14.39632306,156.23,156.21,194.84]
[1749018655382,14.39632306,156.24,156.21,194.84]
[1749018655866,14.39632306,156.22,156.21,155.98]
[1749018656066,40.39632306,156.22,156.16,9.98]
[1749018656387,14.39632306,156.17,156.16,9.98]
[1749018656582,14.39632306,156.17,156.16,48.84]
[1749018658176,14.39632306,156.18,156.16,48.84]
[1749018658714,14.39632306,156.17,156.16,48.84]
[1749018669899,14.39632306,156.17,156.16,48.86]
[1749018670197,14.39632306,156.18,156.16,48.86]
[1749018670394,26.0,156.22,156.16,194.86]
[1749018670596,14.39632306,156.18,156.16,194.86]
[1749018671980,14.39632306,156.19,156.16,194.86]
[1749018672203,26.0,156.22,156.16,194.86]
[1749018672204,14.39632306,156.18,156.16,194.86]
[1749018675103,26.0,156.22,156.16,194.86]
[1749018675280,14.39632306,156.18,156.16,194.86]
[1749018676003,14.39632306,156.17,156.16,155.98]
[1749018676204,14.39632306,156.17,156.16,194.86]
[1749018677009,14.39632306,156.18,156.16,194.86]
[1749018677492,14.39632306,156.18,156.16,155.98]
[1749018677696,14.39632306,156.18,156.17,38.88]
[1749018683105,14.39632306,156.18,156.16,9.98]
[1749018684795,15.99892306,156.18,156.17,38.86]
[1749018685118,15.99892306,156.18,156.17,38.88]
[1749018686002,14.39632306,156.18,156.17,38.88]
[1749018698530,26.0,156.21,156.17,38.88]
[1749018698721,14.39632306,156.18,156.17,38.88]
[1749018700744,14.39632306,156.2,156.17,38.88]
[1749018701042,14.39632306,156.19,156.17,38.88]
[1749018701267,14.39632306,156.19,156.17,184.88]
[1749018702244,40.39632306,156.24,156.17,184.88]
[1749018702439,14.39632306,156.19,156.17,184.88]
[1749018703824,14.39632306,156.18,156.17,184.88]
[1749018705931,14.39632306,156.18,156.17,38.88]
[1749018707340,40.39632306,156.24,156.17,38.88]
[1749018707341,14.39632306,156.19,156.17,38.88]
[1749018707534,14.39632306,156.19,156.17,184.88]
[1749018707843,14.39632306,156.2,156.17,184.88]
[1749018708037,14.39632306,156.19,156.17,184.88]
[1749018708234,40.39632306,156.24,156.17,184.88]
[1749018708235,14.39632306,156.18,156.17,184.88]
[1749018716936,14.39632306,156.19,156.17,184.88]
[1749018717447,14.39632306,156.2,156.17,184.88]
[1749018717830,14.39632306,156.19,156.17,184.88]
[1749018718247,40.39632306,156.24,156.17,184.88]
[1749018718445,14.39632306,156.22,156.18,18.64964886]
[1749018719859,14.39632306,156.21,156.18,18.64964886]
[1749018720240,27.6029,156.27,156.18,18.64964886]
[1749018720241,14.39632306,156.2,156.18,18.64964886]
[1749018720545,14.39632306,156.2,156.18,164.64964886]
[1749018720768,14.39632306,156.21,156.18,164.64964886]
[1749018721145,14.39632306,156.2,156.18,164.64964886]
[1749018722273,14.39632306,156.21,156.18,164.64964886]
[1749018725251,14.39632306,156.22,156.18,164.64964886]
[1749018726067,14.39632306,156.23,156.18,179.04597192]
[1749018726371,14.39632306,156.23,156.2,18.64964886]
[1749018726548,14.39632306,156.23,156.21,48.84]
[1749018728842,1.6029,156.27,156.21,48.84]
[1749018728843,14.39632306,156.24,156.21,48.84]
[1749018729472,14.39632306,156.24,156.21,194.84]
[1749018730771,8.60274715,156.3,156.22,33.04597192]
[1749018731079,14.39632306,156.27,156.23,14.39632306]
[1749018731315,14.39632306,156.27,156.22,164.64964886]
[1749018731316,14.39632306,156.27,156.22,179.04597192]
[1749018732144,27.5619,156.31,156.22,179.04597192]
[1749018732145,14.39632306,156.26,156.22,179.04597192]
[1749018734366,14.39632306,156.27,156.22,179.04597192]
[1749018737881,14.39632306,156.28,156.24,18.64964886]
[1749018738057,14.39632306,156.28,156.25,38.84]
[1749018738261,14.39632306,156.28,156.26,9.96]
[1749018738453,14.39632306,156.28,156.26,155.96]
[1749018739365,14.39632306,156.27,156.26,155.96]
[1749018742072,14.39632306,156.27,156.26,9.96]
[1749018742472,14.39632306,156.27,156.26,38.84]
[1749018746990,14.39632306,156.27,156.22,9.96]
[1749018746991,1.6362,156.26,156.22,9.96]
[1749018747198,14.39632306,156.23,156.22,48.8]
[1749018747377,14.39632306,156.23,156.22,38.84]
[1749018748963,14.39632306,156.23,156.18,65.2]
[1749018749175,14.39632306,156.24,156.21,38.84]
[1749018749377,14.39632306,156.22,156.21,38.84]
[1749018750682,14.39632306,156.22,156.18,65.2]
[1749018750995,14.39632306,156.24,156.21,38.84]
[1749018751506,0.28432314,156.23,156.21,38.84]
[1749018751710,0.28432314,156.23,156.18,9.96]
[1749018751932,0.28432314,156.23,156.21,38.84]
[1749018752073,14.39632306,156.22,156.18,9.96]
[1749018752402,14.39632306,156.19,156.18,9.96]
[1749018752590,14.39632306,156.19,156.18,48.8]
[1749018753700,14.39632306,156.19,156.18,9.96]
[1749018754080,28.79264612,156.19,156.12,9.98]
[1749018754275,14.39632306,156.13,156.12,9.98]
[1749018754479,14.39632306,156.13,156.12,48.84]
[1749018754876,0.42648471,156.2,156.12,48.84]
[1749018755076,14.39632306,156.13,156.12,48.84]
[1749018756672,36.18143376,156.21,156.12,48.84]
[1749018756880,14.39632306,156.16,156.13,18.64964886]
[1749018757177,14.39632306,156.16,156.13,164.64964886]
[1749018758514,14.39632306,156.15,156.13,164.64964886]
[1749018760806,14.39632306,156.16,156.13,164.64964886]
[1749018763582,1.588,156.21,156.13,179.04597192]
[1749018764105,14.39632306,156.18,156.13,179.04597192]
[1749018764801,14.39632306,156.17,156.13,179.04597192]
[1749018769307,14.39632306,156.18,156.14,14.39632306]
[1749018769620,14.39632306,156.18,156.15,18.64964886]
[1749018769918,14.39632306,156.18,156.16,38.86]
[1749018770120,14.39632306,156.18,156.17,9.98]
[1749018770890,1.588,156.21,156.17,9.98]
[1749018771099,14.39632306,156.18,156.17,9.98]
[1749018772126,14.39632306,156.18,156.17,48.84]
[1749018781341,14.39632306,156.2,156.17,48.84]
[1749018782731,14.39632306,156.19,156.17,194.84]
[1749018786042,14.39632306,156.19,156.17,194.84]
[1749018787057,14.39632306,156.24,156.17,194.84]
[1749018787238,14.39632306,156.2,156.17,194.84]
[1749018789332,14.39632306,156.19,156.17,194.84]
[1749018790166,14.39632306,156.2,156.17,194.84]
[1749018792654,14.39632306,156.19,156.17,194.84]
[1749018794274,14.39632306,156.2,156.17,194.84]
[1749018798476,14.39632306,156.21,156.17,194.84]
[1749018799257,14.39632306,156.21,156.17,209.23632306]
[1749018800474,14.39632306,156.21,156.17,194.84]
[1749018801661,26.0,156.24,156.17,194.84]
[1749018801864,14.39632306,156.21,156.17,194.84]
[1749018802981,14.39632306,156.2,156.17,194.84]
[1749018803188,14.39632306,156.19,156.17,155.98]
[1749018803400,14.39632306,156.19,156.18,38.84]
[1749018803577,26.0,156.24,156.18,38.84]
[1749018803881,14.39632306,156.21,156.18,184.84]
[1749018804083,14.39632306,156.22,156.18,184.84]
[1749018804269,1.5795,156.25,156.21,18.64964886]
[1749018804270,14.39632306,156.25,156.21,18.64964886]
[1749018804463,14.39632306,156.25,156.22,48.8]
[1749018805163,26.0,156.27,156.22,48.8]
[1749018805164,14.39632306,156.24,156.22,48.8]
[1749018806073,14.39632306,156.23,156.22,48.8]
[1749018809387,14.39632306,156.23,156.22,194.8]
[1749018810997,14.39632306,156.23,156.22,155.96]
[1749018811169,14.39632306,156.23,156.18,9.96]
[1749018811378,14.39632306,156.19,156.18,9.96]
[1749018811577,14.39632306,156.19,156.18,48.8]
[1749018812298,14.39632306,156.19,156.18,9.96]
[1749018812593,14.39632306,156.19,156.18,48.8]
[1749018812775,14.39632306,156.19,156.14,9.96]
[1749018812975,14.39632306,156.15,156.14,9.96]
[1749018813191,14.39632306,156.15,156.14,48.8]
[1749018813392,14.39632306,156.16,156.14,48.8]
[1749018814207,14.39632306,156.17,156.14,48.8]
[1749018814784,14.39632306,156.17,156.15,38.84]
[1749018814992,26.0,156.21,156.15,38.84]
[1749018815304,14.39632306,156.17,156.15,38.84]
[1749018815510,14.39632306,156.16,156.15,38.84]
[1749018821314,14.39632306,156.17,156.15,38.84]
[1749018823141,14.39632306,156.16,156.15,38.84]
[1749018824309,14.39632306,156.18,156.15,38.84]
[1749018824515,14.39632306,156.18,156.15,184.84]
[1749018825612,14.39632306,156.19,156.15,184.84]
[1749018826425,14.39632306,156.21,156.16,33.04597192]
[1749018826612,14.39632306,156.22,156.18,14.39632306]
[1749018826823,14.39632306,156.22,156.19,48.8]
[1749018827208,1.5682,156.24,156.19,48.8]
[1749018827209,14.39632306,156.24,156.19,63.19632306]
[1749018827410,14.39632306,156.24,156.2,33.04597192]
[1749018828106,14.39632306,156.24,156.2,18.64964886]
[1749018829110,14.39632306,156.23,156.2,18.64964886]
[1749018829636,14.39632306,156.25,156.21,14.39632306]
[1749018829810,14.85864715,156.3,156.23,14.39632306]
[1749018829811,26.0,156.29,156.23,14.39632306]
[1749018830007,14.39632306,156.27,156.24,48.8]
[1749018830738,16.01572306,156.32,156.24,63.19632306]
[1749018830739,14.39632306,156.28,156.24,63.19632306]
[1749018832717,14.39632306,156.29,156.24,63.19632306]
[1749018833111,26.0,156.31,156.25,18.64964886]
[1749018833314,14.39632306,156.3,156.25,33.04597192]
[1749018833537,14.39632306,156.29,156.25,33.04597192]
[1749018833732,14.39632306,156.3,156.25,33.04597192]
[1749018834042,14.39632306,156.29,156.25,33.04597192]
[1749018838322,14.39632306,156.3,156.25,33.04597192]
[1749018838918,14.39632306,156.3,156.26,14.39632306]
[1749018840340,14.39632306,156.3,156.25,179.04597192]
[1749018841219,14.39632306,156.3,156.26,14.39632306]
[1749018841657,1.5477,156.36,156.28,14.39632306]
[1749018841820,14.39632306,156.33,156.29,48.78]
[1749018842122,14.39632306,156.32,156.29,48.78]
[1749018842317,14.39632306,156.31,156.29,48.78]
[1749018844373,14.39632306,156.3,156.29,9.96]
[1749018844540,14.39632306,156.3,156.29,48.78]
[1749018845636,16.05642306,156.3,156.29,9.96]
[1749018845846,16.05642306,156.3,156.29,48.78]
[1749018846935,1.6601,156.3,156.29,48.78]
[1749018847141,16.05642306,156.3,156.29,48.78]
[1749018854552,16.05642306,156.3,156.29,9.96]
[1749018854755,16.05642306,156.3,156.29,48.78]
[1749018857276,26.0,156.32,156.29,48.78]
[1749018857480,14.39632306,156.32,156.29,48.78]
[1749018857844,14.39632306,156.34,156.29,63.17632306]
[1749018858041,14.39632306,156.34,156.3,33.04597192]
[1749018858270,14.39632306,156.36,156.32,18.64964886]
[1749018858464,14.39632306,156.36,156.33,38.82]
[1749018858657,14.39632306,156.35,156.34,9.96]
[1749018859690,1.6393,156.39,156.34,9.96]
[1749018859894,14.39632306,156.35,156.34,9.96]
[1749018862099,14.39632306,156.35,156.34,48.78]
[1749018864412,14.39632306,156.35,156.3,146.0]
[1749018864594,26.0,156.37,156.3,146.0]
[1749018864595,14.39632306,156.31,156.3,146.0]
[1749018864904,14.39632306,156.31,156.3,38.82]
[1749018865200,14.39632306,156.32,156.3,38.82]
[1749018865497,14.39632306,156.31,156.3,38.82]
[1749018866199,26.0,156.37,156.3,38.82]
[1749018866389,14.39632306,156.31,156.3,38.82]
[1749018866887,14.39632306,156.34,156.3,57.46964886]
[1749018867203,14.39632306,156.31,156.29,9.96]
[1749018867498,26.14216157,156.36,156.3,38.82]
[1749018867499,0.14216157,156.35,156.3,38.82]
[1749018867702,14.39632306,156.31,156.29,9.96]
[1749018867879,14.39632306,156.3,156.29,9.96]
[1749018868313,14.39632306,156.3,156.29,48.78]
[1749018868675,14.39632306,156.3,156.29,9.96]
[1749018868876,14.39632306,156.3,156.29,48.78]
[1749018869078,14.39632306,156.3,156.25,9.96]
[1749018869304,14.39632306,156.26,156.25,9.96]
[1749018869598,14.39632306,156.26,156.25,48.78]
[1749018871589,14.39632306,156.26,156.25,9.96]
[1749018871785,14.39632306,156.26,156.25,48.78]
[1749018872088,14.39632306,156.26,156.25,9.96]
[1749018872292,14.39632306,156.26,156.25,48.78]
[1749018873701,14.39632306,156.26,156.25,9.96]
[1749018873906,14.39632306,156.26,156.25,48.78]
[1749018880213,14.39632306,156.26,156.25,9.96]
[1749018880395,14.39632306,156.26,156.25,48.78]
[1749018881803,14.39632306,156.26,156.25,48.78]
[1749018893240,14.39632306,156.27,156.25,194.78]
[1749018895352,14.39632306,156.27,156.25,48.78]
[1749018896438,14.39632306,156.28,156.25,48.78]
[1749018900068,14.39632306,156.29,156.26,18.64964886]
[1749018900368,14.39632306,156.31,156.26,33.04597192]
[1749018900552,7.57456905,156.37,156.29,14.39632306]
[1749018900553,14.39632306,156.33,156.29,14.39632306]
[1749018900739,14.39632306,156.33,156.3,48.78]
[1749018901358,14.39632306,156.32,156.3,48.78]
[1749018901878,14.39632306,156.31,156.3,9.96]
[1749018902076,14.39632306,156.31,156.3,48.78]
[1749018910266,14.39632306,156.31,156.3,48.78]
[1749018919209,26.0,156.36,156.3,48.78]
[1749018919397,14.39632306,156.34,156.3,48.78]
[1749018919886,14.39632306,156.33,156.3,48.78]
[1749018921107,14.39632306,156.32,156.3,48.78]
[1749018922584,14.39632306,156.31,156.3,9.96]
[1749018922922,14.39632306,156.31,156.3,48.78]
[1749018924095,14.39632306,156.32,156.3,48.78]
[1749018925188,14.39632306,156.33,156.3,48.78]
[1749018927716,14.39632306,156.33,156.3,194.78]
[1749018928586,14.39632306,156.32,156.3,194.78]
[1749018931123,14.39632306,156.31,156.3,155.96]
[1749018931296,14.39632306,156.31,156.3,48.76]
[1749018933509,14.39632306,156.31,156.3,9.96]
[1749018933720,14.39632306,156.31,156.3,48.76]
[1749018934943,14.39632306,156.31,156.26,9.96]
[1749018935141,14.39632306,156.28,156.27,38.8]
[1749018939847,14.39632306,156.28,156.26,155.96]
[1749018940141,42.06262306,156.32,156.27,38.82]
[1749018940316,14.39632306,156.28,156.27,38.82]
[1749018940737,14.39632306,156.28,156.26,155.96]
[1749018940923,14.39632306,156.27,156.26,155.96]
[1749018941126,42.06262306,156.32,156.26,155.96]
[1749018941127,14.39632306,156.28,156.26,194.78]
[1749018941321,27.6663,156.32,156.26,194.78]
[1749018941525,14.39632306,156.3,156.26,209.17632306]
[1749018941742,14.39632306,156.29,156.26,194.78]
[1749018943037,14.39632306,156.3,156.26,194.78]
[1749018943237,14.39632306,156.31,156.27,18.64964886]
[1749018943437,26.0,156.34,156.27,18.64964886]
[1749018943438,14.39632306,156.32,156.27,33.04597192]
[1749018945443,14.39632306,156.32,156.27,179.04597192]
[1749018946564,14.39632306,156.31,156.27,179.04597192]
[1749018947066,14.39632306,156.32,156.27,179.04597192]
[1749018948272,14.39632306,156.33,156.29,18.64964886]
[1749018948474,14.39632306,156.33,156.3,38.82]
[1749018948778,14.39632306,156.33,156.31,9.96]
[1749018949152,14.39632306,156.32,156.31,9.96]
[1749018953768,14.39632306,156.32,156.31,48.76]
[1749018955891,14.39632306,156.32,156.31,9.96]
[1749018956079,14.39632306,156.32,156.31,48.76]
[1749018956974,28.79264612,156.32,156.31,48.76]
[1749018957670,28.79264612,156.32,156.31,38.8]
[1749018959587,28.79264612,156.32,156.27,9.96]
[1749018959790,14.39632306,156.28,156.27,9.96]
[1749018959973,14.39632306,156.28,156.27,48.76]
[1749018960172,14.39632306,156.28,156.27,9.96]
[1749018960674,14.39632306,156.28,156.27,48.76]
[1749018960898,1.6171,156.31,156.27,48.76]
[1749018961105,1.37347344,156.34,156.27,48.76]
[1749018961106,1.23131187,156.34,156.27,63.15632306]
[1749018961274,14.39632306,156.32,156.27,63.15632306]
[1749018961474,14.39632306,156.31,156.27,48.76]
[1749018963910,14.39632306,156.3,156.27,48.76]
[1749018969016,14.39632306,156.31,156.27,48.76]
[1749018969220,14.39632306,156.3,156.27,194.76]
[1749018969891,14.39632306,156.31,156.27,194.76]
[1749018972433,14.39632306,156.31,156.28,9.96]
[1749018975133,14.39632306,156.31,156.28,155.96]
[1749018979715,14.39632306,156.29,156.28,155.96]
[1749018981350,14.39632306,156.29,156.28,194.76]
[1749018984017,14.39632306,156.29,156.28,9.96]
[1749018984243,14.39632306,156.29,156.28,48.76]
[1749018988522,14.39632306,156.29,156.28,9.96]
[1749018988833,40.39632306,156.29,156.24,9.96]
[1749018989144,14.39632306,156.25,156.24,9.96]
[1749018989324,14.39632306,156.25,156.24,48.78]
[1749018989925,26.0,156.29,156.24,48.78]
[1749018990127,14.39632306,156.25,156.24,194.78]
[1749018995756,14.39632306,156.25,156.24,48.78]
[1749018997651,14.39632306,156.25,156.24,9.96]
[1749018997847,14.39632306,156.25,156.24,48.78]
[1749019002476,1.6158,156.3,156.24,48.78]
[1749019002773,14.39632306,156.27,156.24,194.78]
[1749019002977,14.39632306,156.26,156.24,194.78]
[1749019005268,14.39632306,156.25,156.24,194.78]
[1749019005588,14.39632306,156.25,156.24,48.78]
[1749019007066,14.39632306,156.25,156.24,9.96]
[1749019007266,14.39632306,156.25,156.24,48.78]
[1749019011988,14.39632306,156.25,156.24,38.82]
[1749019018102,14.39632306,156.25,156.2,155.96]
[1749019018323,14.39632306,156.22,156.21,38.82]
[1749019019015,14.39632306,156.25,156.21,38.82]
[1749019019197,14.39632306,156.25,156.21,53.21632306]
[1749019019635,14.39632306,156.25,156.22,18.64964886]
[1749019020603,14.39632306,156.24,156.22,18.64964886]
[1749019020810,14.39632306,156.24,156.22,164.64964886]
[1749019023515,26.0,156.29,156.22,164.64964886]
[1749019023516,14.39632306,156.25,156.22,164.64964886]
[1749019023915,26.0,156.29,156.22,164.64964886]
[1749019024120,14.39632306,156.26,156.23,9.96]
[1749019024928,14.39632306,156.26,156.23,155.96]
[1749019025132,14.39632306,156.27,156.23,155.96]
[1749019032048,14.39632306,156.26,156.23,155.96]
[1749019032222,14.39632306,156.26,156.24,38.82]
[1749019034365,14.39632306,156.26,156.24,184.82]
[1749019035131,1.6158,156.3,156.24,184.82]
[1749019035328,14.39632306,156.26,156.24,184.82]
[1749019036151,14.39632306,156.27,156.24,184.82]
[1749019039337,14.39632306,156.26,156.24,184.82]
[1749019043163,9.21884538,156.26,156.24,184.82]
[1749019043359,9.21884538,156.26,156.25,9.96]
[1749019045544,8.98643517,156.34,156.26,18.64964886]
[1749019045764,9.21884538,156.31,156.27,38.82]
[1749019047038,9.21884538,156.33,156.28,27.86849424]
[1749019047239,1.6075,156.38,156.32,18.64964886]
[1749019047445,14.38982588,156.36,156.33,48.76]
[1749019049051,14.38982588,156.35,156.33,48.76]
[1749019049964,14.38982588,156.34,156.33,48.76]
[1749019050741,14.38982588,156.34,156.33,9.94]
[1749019051073,14.38982588,156.34,156.33,48.74]
[1749019051770,14.38982588,156.34,156.33,9.94]
[1749019051950,14.38982588,156.34,156.33,48.74]
[1749019052977,14.38982588,156.34,156.33,9.94]
[1749019053177,14.38982588,156.34,156.33,48.74]
[1749019053851,14.38982588,156.34,156.33,9.94]
[1749019054062,14.38982588,156.34,156.33,48.74]
[1749019054975,14.38982588,156.34,156.33,9.94]
[1749019055178,14.38982588,156.34,156.33,48.74]
[1749019056375,14.38982588,156.34,156.33,9.94]
[1749019056548,14.38982588,156.34,156.33,48.74]
[1749019067887,14.38982588,156.35,156.33,48.74]
[1749019068218,14.38982588,156.36,156.33,48.74]
[1749019070287,14.38982588,156.35,156.33,48.74]
[1749019071715,14.38982588,156.34,156.33,48.74]
[1749019072810,14.38982588,156.34,156.33,194.74]
[1749019073140,14.38982588,156.35,156.33,194.74]
[1749019073712,14.38982588,156.36,156.33,194.74]
[1749019074342,14.38982588,156.35,156.33,194.74]
[1749019076122,40.38982588,156.4,156.33,194.74]
[1749019076123,14.38982588,156.34,156.33,194.74]
[1749019077526,14.38982588,156.35,156.33,194.74]
[1749019080423,14.38982588,156.34,156.33,155.94]
[1749019080620,14.38982588,156.34,156.33,48.74]
[1749019083314,14.38982588,156.34,156.33,9.94]
[1749019083830,14.38982588,156.34,156.33,48.72]
[1749019087634,14.38982588,156.34,156.29,9.94]
[1749019087833,26.0,156.34,156.3,38.78]
[1749019088043,14.38982588,156.31,156.3,38.78]
[1749019090309,14.38982588,156.31,156.29,9.94]
[1749019090513,26.0,156.34,156.3,38.8]
[1749019090728,14.38982588,156.31,156.3,38.8]
[1749019092312,14.38982588,156.31,156.29,9.94]
[1749019092512,26.0,156.34,156.3,38.8]
[1749019092711,14.38982588,156.31,156.3,38.8]
[1749019099246,26.0,156.34,156.3,38.8]
[1749019099469,14.38982588,156.32,156.3,184.8]
[1749019100334,14.38982588,156.33,156.3,184.8]
[1749019100555,14.38982588,156.32,156.3,184.8]
[1749019100858,14.38982588,156.31,156.3,146.0]
[1749019101054,14.38982588,156.31,156.3,184.8]
[1749019101439,14.38982588,156.31,156.3,146.0]
[1749019101743,14.38982588,156.31,156.3,184.8]
[1749019103328,14.38982588,156.31,156.3,146.0]
[1749019103648,14.38982588,156.31,156.3,184.8]
[1749019104853,14.38982588,156.31,156.3,38.8]
[1749019109065,26.0,156.32,156.3,38.8]
[1749019109242,14.38982588,156.31,156.3,38.8]
[1749019111647,26.0,156.33,156.3,38.8]
[1749019111962,14.38982588,156.31,156.3,38.8]
[1749019113756,14.38982588,156.31,156.29,9.94]
[1749019113965,14.38982588,156.32,156.3,38.8]
[1749019114269,14.38982588,156.31,156.3,38.8]
[1749019114945,14.38982588,156.31,156.29,9.94]
[1749019115142,14.38982588,156.32,156.3,38.8]
[1749019115461,14.38982588,156.31,156.3,38.8]
[1749019119047,14.38982588,156.31,156.29,9.94]
[1749019119374,14.38982588,156.32,156.3,38.8]
[1749019119540,0.28432314,156.31,156.29,9.94]
[1749019119741,0.28432314,156.31,156.29,48.74]
[1749019120262,0.28432314,156.31,156.25,9.94]
[1749019120448,0.28432314,156.31,156.26,38.8]
[1749019120655,14.38982588,156.27,156.25,9.94]
[1749019120965,14.38982588,156.26,156.25,9.94]
[1749019121164,14.38982588,156.26,156.25,48.74]